bitfinex-derivatives/quotes_SOLF0:USTF0_20260311
["timestamp","ask_amount","ask_price","bid_price","bid_amount"]
[1773202220714,2.62675716,85.53,85.491,4.90961075]
[1773202220911,7.8636825,85.54,85.491,4.90961075]
[1773202221715,7.8636825,85.54,85.499,10.525]
[1773202221916,7.8636825,85.54,85.5,4.90961075]
[1773202223918,5.23692534,85.54,85.501,4.90961075]
[1773202224319,2.62675716,85.55,85.504,4.90961075]
[1773202224521,5.23692534,85.551,85.511,4.90961075]
[1773202224819,5.23692534,85.549,85.511,4.90961075]
[1773202226221,5.23692534,85.539,85.499,10.525]
[1773202226420,5.23692534,85.539,85.495,4.90961075]
[1773202229518,5.23692534,85.529,85.484,4.90961075]
[1773202230126,5.23692534,85.528,85.486,4.90961075]
[1773202231518,5.23692534,85.528,85.488,4.90961075]
[1773202235325,5.23692534,85.528,85.492,10.526]
[1773202235526,2.62675716,85.53,85.493,4.90961075]
[1773202236122,10.521,85.537,85.493,4.90961075]
[1773202236327,2.92196002,85.536,85.493,4.90961075]
[1773202236622,2.92196002,85.535,85.493,4.90961075]
[1773202236827,2.92196002,85.534,85.493,4.90961075]
[1773202237028,2.92196002,85.533,85.493,4.90961075]
[1773202237229,2.92196002,85.532,85.493,4.90961075]
[1773202237427,2.92196002,85.531,85.493,4.90961075]
[1773202237729,2.92196002,85.53,85.493,4.90961075]
[1773202237930,10.521,85.537,85.493,4.90961075]
[1773202238133,10.521,85.535,85.493,4.90961075]
[1773202238325,2.92195892,85.534,85.493,4.90961075]
[1773202238529,2.92195892,85.533,85.493,4.90961075]
[1773202238831,2.92195892,85.532,85.493,4.90961075]
[1773202239031,2.92195892,85.531,85.493,4.90961075]
[1773202239231,2.92195892,85.53,85.493,4.90961075]
[1773202239432,2.92195892,85.529,85.493,4.90961075]
[1773202239632,2.92195892,85.528,85.493,4.90961075]
[1773202239833,2.92195892,85.527,85.493,4.90961075]
[1773202240128,10.521,85.535,85.493,4.90961075]
[1773202240431,2.9219591,85.534,85.493,4.90961075]
[1773202240626,2.9219591,85.533,85.493,4.90961075]
[1773202240828,2.9219591,85.532,85.493,4.90961075]
[1773202241022,5.17539378,85.53,85.493,4.90961075]
[1773202241224,2.62675716,85.54,85.493,4.90961075]
[1773202241225,2.9219591,85.529,85.493,4.90961075]
[1773202241424,2.9219591,85.528,85.493,4.90961075]
[1773202241623,2.9219591,85.527,85.493,4.90961075]
[1773202241826,2.9219591,85.526,85.493,4.90961075]
[1773202242030,2.9219591,85.525,85.493,4.90961075]
[1773202242337,2.92195842,85.524,85.495,4.83068126]
[1773202242529,5.17539378,85.538,85.495,4.83068126]
[1773202242730,2.92195842,85.537,85.495,4.83068126]
[1773202242930,2.92195842,85.536,85.495,4.83068126]
[1773202243126,2.92195842,85.535,85.495,4.83068126]
[1773202243327,5.17539378,85.538,85.495,4.83068126]
[1773202243328,2.92195842,85.534,85.495,4.83068126]
[1773202243531,2.92195842,85.533,85.495,4.83068126]
[1773202243737,2.92195842,85.532,85.495,4.83068126]
[1773202243938,2.92195842,85.531,85.495,4.83068126]
[1773202244133,2.92195842,85.53,85.495,4.83068126]
[1773202244328,2.92195842,85.529,85.499,15.35568126]
[1773202244533,7.80215094,85.55,85.501,4.83068126]
[1773202244738,5.17539378,85.55,85.501,4.83068126]
[1773202246533,5.17539378,85.55,85.5,2.62675716]
[1773202246534,5.17539378,85.55,85.51,4.83068126]
[1773202247441,7.80215094,85.55,85.51,4.83068126]
[1773202247641,5.17539378,85.539,85.501,10.525]
[1773202248236,5.17539378,85.539,85.505,4.83068126]
[1773202249246,2.62675716,85.55,85.507,4.83068126]
[1773202250446,2.62675716,85.55,85.509,4.87484628]
[1773202251646,2.62675716,85.55,85.512,4.87484628]
[1773202252653,2.62675716,85.55,85.517,4.87484628]
[1773202252949,258.43849442,85.564,85.517,4.87484628]
[1773202253150,258.43849442,85.564,85.526,4.87484628]
[1773202253151,253.47834274,85.564,85.526,4.87484628]
[1773202254455,253.47834274,85.564,85.531,10.521]
[1773202254753,253.47834274,85.564,85.526,4.87484628]
[1773202255254,253.47834274,85.564,85.528,4.87484628]
[1773202255651,253.47834274,85.564,85.531,4.87484628]
[1773202256354,253.47834274,85.564,85.531,15.39584628]
[1773202258654,4.96015168,85.586,85.543,10.52]
[1773202258861,2.62675716,85.58,85.543,10.52]
[1773202259056,4.96015168,85.579,85.542,4.87484628]
[1773202260058,2.62133465,85.58,85.542,4.87484628]
[1773202260059,4.96015168,85.577,85.542,4.87484628]
[1773202260860,4.96015168,85.569,85.531,4.87484628]
[1773202262358,4.96015168,85.569,85.531,15.39584628]
[1773202266765,4.96015168,85.559,85.52,4.87484628]
[1773202267464,4.96015168,85.549,85.509,4.87484628]
[1773202268365,4.96015168,85.559,85.512,4.87484628]
[1773202268864,4.96015168,85.559,85.523,4.87484628]
[1773202270358,4.96015168,85.559,85.524,10.522]
[1773202270864,4.96015168,85.559,85.523,4.87484628]
[1773202271255,4.96015168,85.559,85.516,10.523]
[1773202273159,4.96015168,85.559,85.517,4.87484628]
[1773202273359,4.96015168,85.559,85.518,15.39784628]
[1773202273668,4.96015168,85.559,85.519,4.87484628]
[1773202282173,4.48950574,85.571,85.531,4.88916567]
[1773202282969,2.62133465,85.57,85.532,10.521]
[1773202283173,4.48950574,85.569,85.532,15.41016567]
[1773202286377,7.40990354,85.568,85.532,15.41016567]
[1773202286575,4.48950574,85.568,85.532,15.41016567]
[1773202286977,4.48950574,85.566,85.533,4.88916567]
[1773202287178,4.48950574,85.564,85.533,4.88916567]
[1773202287380,2.92059839,85.563,85.533,4.88916567]
[1773202287684,4.48950574,85.564,85.533,4.88916567]
[1773202290285,2.92040051,85.563,85.533,4.88916567]
[1773202290485,4.48950574,85.564,85.533,4.88916567]
[1773202290786,2.92040051,85.563,85.533,4.88916567]
[1773202291085,4.48950574,85.564,85.533,4.88916567]
[1773202291388,2.92040051,85.563,85.533,4.88916567]
[1773202291684,4.48950574,85.564,85.533,4.88916567]
[1773202291884,2.92040051,85.563,85.533,4.88916567]
[1773202292086,4.48950574,85.564,85.533,4.88916567]
[1773202292284,2.92040051,85.563,85.533,4.88916567]
[1773202292488,4.48950574,85.561,85.533,4.88916567]
[1773202292788,4.48950574,85.559,85.524,10.522]
[1773202293885,4.48950574,85.559,85.524,15.41116567]
[1773202295889,2.9206015,85.558,85.525,4.88916567]
[1773202296090,4.48950574,85.569,85.528,4.88916567]
[1773202296296,4.48950574,85.559,85.518,4.88916567]
[1773202296490,4.48950574,85.557,85.518,4.88916567]
[1773202296793,4.48950574,85.555,85.518,4.88916567]
[1773202296990,4.48950574,85.553,85.518,4.88916567]
[1773202297190,4.48950574,85.551,85.518,4.88916567]
[1773202297385,2.92040272,85.55,85.518,4.88916567]
[1773202297689,4.48950574,85.55,85.518,4.88916567]
[1773202299093,2.92065747,85.549,85.518,4.88916567]
[1773202299387,2.92065747,85.548,85.518,4.88916567]
[1773202299591,2.92065747,85.547,85.518,4.88916567]
[1773202299792,2.92065747,85.546,85.518,4.88916567]
[1773202300092,4.48950574,85.55,85.518,4.88916567]
[1773202306904,4.50360842,85.549,85.505,4.52548316]
[1773202307106,4.50360842,85.549,85.51,2.62133465]
[1773202307303,4.50360842,85.549,85.512,10.524]
[1773202308797,4.50360842,85.549,85.512,15.04948316]
[1773202309002,4.50360842,85.549,85.512,4.52548316]
[1773202309202,2.9209146,85.548,85.512,4.52548316]
[1773202309503,4.50360842,85.546,85.512,4.52548316]
[1773202309903,2.92091531,85.545,85.512,4.52548316]
[1773202310108,2.92091531,85.544,85.512,4.52548316]
[1773202310309,2.92091531,85.543,85.512,4.52548316]
[1773202310511,7.64135834,85.542,85.512,4.52548316]
[1773202310704,4.72044303,85.542,85.512,4.52548316]
[1773202311110,2.92091531,85.541,85.512,4.52548316]
[1773202311311,4.72044303,85.542,85.512,4.52548316]
[1773202311511,2.92091531,85.541,85.512,4.52548316]
[1773202311709,4.72044303,85.542,85.512,4.52548316]
[1773202311909,2.92091531,85.541,85.512,4.52548316]
[1773202312111,4.72044303,85.542,85.512,4.52548316]
[1773202316008,4.72044303,85.542,85.515,10.523]
[1773202316311,4.72044303,85.542,85.515,4.34147805]
[1773202321214,4.72044303,85.54,85.5,2.62282849]
[1773202321418,4.72044303,85.54,85.497,10.526]
[1773202321419,4.72044303,85.538,85.497,10.526]
[1773202321614,4.72044303,85.536,85.497,10.526]
[1773202321820,4.72044303,85.534,85.5,2.62282849]
[1773202323621,4.72044303,85.544,85.503,4.34147805]
[1773202323920,4.72044303,85.542,85.503,4.34147805]
[1773202324112,2.92117233,85.541,85.51,2.62282849]
[1773202324316,2.92117233,85.54,85.51,2.62282849]
[1773202324512,2.92117233,85.539,85.51,2.62282849]
[1773202324717,2.92117233,85.538,85.51,2.62282849]
[1773202324916,4.72044303,85.542,85.51,2.62282849]
[1773202324917,2.92117233,85.537,85.51,2.62282849]
[1773202325121,2.92117233,85.536,85.51,2.62282849]
[1773202325321,2.92117233,85.535,85.51,2.62282849]
[1773202325516,2.92117233,85.534,85.51,2.62282849]
[1773202325719,2.92117233,85.533,85.51,2.62282849]
[1773202325921,2.92117233,85.532,85.51,2.62282849]
[1773202326218,4.72044303,85.542,85.51,2.62282849]
[1773202326524,7.64182229,85.541,85.51,2.62282849]
[1773202326724,7.64182229,85.54,85.51,2.62282849]
[1773202326928,2.92137926,85.539,85.51,2.62282849]
[1773202327119,2.92137926,85.538,85.51,2.62282849]
[1773202327424,2.92137926,85.537,85.51,2.62282849]
[1773202327625,2.92137926,85.536,85.51,2.62282849]
[1773202327924,2.92137926,85.535,85.51,2.62282849]
[1773202328120,2.92137926,85.534,85.503,4.34147805]
[1773202328325,2.92137926,85.533,85.503,4.34147805]
[1773202328526,4.72044303,85.54,85.503,4.34147805]
[1773202328726,4.72044303,85.538,85.503,4.34147805]
[1773202329026,7.64186369,85.537,85.503,4.34147805]
[1773202329224,2.92142066,85.536,85.503,4.34147805]
[1773202329426,2.92142066,85.535,85.503,4.34147805]
[1773202329726,2.92142066,85.534,85.503,4.34147805]
[1773202330025,4.72044303,85.533,85.5,2.62282849]
[1773202330526,4.72044303,85.533,85.501,4.34147805]
[1773202330825,4.72044303,85.533,85.503,4.34147805]
[1773202331418,4.72044303,85.533,85.504,10.525]
[1773202331618,4.72044303,85.533,85.504,14.86647805]
[1773202332422,4.72044303,85.533,85.505,4.34147805]
[1773202333419,292.19957908,85.573,85.511,4.34147805]
[1773202333420,4.72044303,85.549,85.511,4.34147805]
[1773202333625,2.92128219,85.548,85.511,4.34147805]
[1773202333823,2.92128219,85.547,85.523,10.522]
[1773202334028,4.72044303,85.561,85.524,4.34147805]
[1773202334332,4.72044303,85.559,85.524,4.34147805]
[1773202334529,2.62282849,85.57,85.524,4.34147805]
[1773202334530,4.72044303,85.557,85.524,4.34147805]
[1773202334731,4.72044303,85.555,85.524,4.34147805]
[1773202334933,2.92082393,85.554,85.524,4.34147805]
[1773202335129,2.92082393,85.553,85.524,4.34147805]
[1773202335332,2.92082393,85.552,85.524,4.34147805]
[1773202335534,4.72044303,85.555,85.524,4.34147805]
[1773202335830,7.64126916,85.554,85.524,4.34147805]
[1773202336036,2.92082613,85.553,85.524,4.34147805]
[1773202336338,2.92082613,85.552,85.524,4.34147805]
[1773202336536,4.72044303,85.554,85.524,4.34147805]
[1773202336736,2.92082648,85.553,85.524,4.34147805]
[1773202336936,2.92082648,85.552,85.524,4.34147805]
[1773202337133,4.72044303,85.554,85.524,4.34147805]
[1773202337339,2.92082648,85.553,85.524,4.34147805]
[1773202337636,2.92082648,85.552,85.524,4.34147805]
[1773202337837,4.72044303,85.554,85.524,4.34147805]
[1773202338038,2.92082648,85.553,85.524,4.34147805]
[1773202338233,2.92082648,85.552,85.524,4.34147805]
[1773202338433,2.92082648,85.551,85.524,4.34147805]
[1773202338627,4.72044303,85.554,85.524,4.34147805]
[1773202338828,2.92082648,85.553,85.524,4.34147805]
[1773202339038,2.92082648,85.552,85.524,4.34147805]
[1773202339334,2.92082648,85.551,85.524,4.34147805]
[1773202339535,4.72044303,85.554,85.524,4.34147805]
[1773202339835,2.92082685,85.553,85.524,4.34147805]
[1773202340031,2.92082685,85.552,85.524,4.34147805]
[1773202340231,2.92082685,85.551,85.524,4.34147805]
[1773202340432,4.72044303,85.554,85.524,4.34147805]
[1773202340635,2.92082685,85.553,85.524,4.34147805]
[1773202340936,2.92082685,85.552,85.524,4.34147805]
[1773202341138,2.92082685,85.551,85.524,4.34147805]
[1773202341432,2.92082685,85.55,85.524,4.34147805]
[1773202341637,2.92082685,85.549,85.524,4.34147805]
[1773202341838,2.92082685,85.548,85.524,4.34147805]
[1773202342031,2.92082685,85.547,85.524,4.34147805]
[1773202342233,2.92082685,85.546,85.524,4.34147805]
[1773202342430,4.72044303,85.554,85.515,10.523]
[1773202342634,4.70369671,85.552,85.515,10.523]
[1773202342829,4.70369671,85.55,85.515,10.523]
[1773202343041,7.62472186,85.549,85.515,10.523]
[1773202343241,4.70369671,85.547,85.515,10.523]
[1773202343443,2.92102515,85.546,85.515,10.523]
[1773202343642,4.70369671,85.547,85.515,10.523]
[1773202343842,2.92102674,85.546,85.515,14.8454281]
[1773202344141,4.70369671,85.547,85.518,10.523]
[1773202344439,2.92102622,85.546,85.519,4.3224281]
[1773202344639,4.70369671,85.557,85.519,4.3224281]
[1773202344840,4.70369671,85.555,85.519,4.3224281]
[1773202345042,2.92102604,85.554,85.519,4.3224281]
[1773202345243,4.70369671,85.555,85.519,4.3224281]
[1773202345244,2.92102604,85.553,85.52,2.62282849]
[1773202345542,2.92102604,85.552,85.52,2.62282849]
[1773202345741,2.92102604,85.551,85.52,2.62282849]
[1773202345942,2.92102604,85.55,85.52,2.62282849]
[1773202346145,2.92102604,85.549,85.52,2.62282849]
[1773202346342,2.92102604,85.548,85.52,2.62282849]
[1773202346642,2.92102604,85.547,85.52,2.62282849]
[1773202346842,2.92102604,85.546,85.52,2.62282849]
[1773202347045,4.70369671,85.555,85.52,2.62282849]
[1773202347237,4.70369671,85.553,85.52,2.62282849]
[1773202347440,7.62472312,85.552,85.52,2.62282849]
[1773202347641,2.92102641,85.551,85.52,2.62282849]
[1773202347843,2.92102641,85.55,85.52,2.62282849]
[1773202348045,2.92102641,85.549,85.52,2.62282849]
[1773202348244,2.92102641,85.548,85.52,2.62282849]
[1773202348539,2.92102641,85.547,85.52,2.62282849]
[1773202348745,2.92102641,85.546,85.52,2.62282849]
[1773202349045,4.70369671,85.552,85.52,2.62282849]
[1773202349247,2.92102641,85.551,85.52,2.62282849]
[1773202349445,2.92102641,85.55,85.52,2.62282849]
[1773202349645,2.92102641,85.549,85.52,2.62282849]
[1773202349847,2.92102641,85.548,85.52,2.62282849]
[1773202350043,2.92102641,85.547,85.52,2.62282849]
[1773202350243,2.92102641,85.546,85.52,2.62282849]
[1773202350441,2.92102641,85.545,85.52,2.62282849]
[1773202350742,2.92102641,85.544,85.52,2.62282849]
[1773202350947,2.92102641,85.543,85.52,2.62282849]
[1773202351147,2.92102641,85.542,85.52,2.62282849]
[1773202351348,2.92102641,85.541,85.52,2.62282849]
[1773202351649,4.70369671,85.552,85.52,2.62282849]
[1773202351949,4.70369671,85.55,85.52,2.62282849]
[1773202352250,2.92102624,85.549,85.52,2.62282849]
[1773202352449,2.92102624,85.548,85.52,2.62282849]
[1773202352649,2.92102624,85.547,85.52,2.62282849]
[1773202352845,2.92102624,85.546,85.52,2.62282849]
[1773202353050,2.92102624,85.545,85.52,2.62282849]
[1773202353251,2.92102624,85.544,85.52,2.62282849]
[1773202353550,2.92102624,85.543,85.52,2.62282849]
[1773202353752,2.92102624,85.542,85.52,2.62282849]
[1773202353949,2.92102624,85.541,85.52,2.62282849]
[1773202354152,4.70369671,85.55,85.52,2.62282849]
[1773202354352,2.92102624,85.549,85.519,4.3224281]
[1773202354648,2.92102624,85.548,85.519,4.3224281]
[1773202354848,2.92102624,85.547,85.519,4.3224281]
[1773202355049,2.92102624,85.546,85.519,4.3224281]
[1773202355248,2.92102624,85.545,85.519,4.3224281]
[1773202355542,2.92102624,85.544,85.519,4.3224281]
[1773202355747,2.92102624,85.543,85.519,4.3224281]
[1773202355950,2.92102624,85.542,85.519,4.3224281]
[1773202356150,2.92102624,85.541,85.519,4.3224281]
[1773202356344,4.70369671,85.569,85.527,10.522]
[1773202356544,4.70369671,85.559,85.521,4.3224281]
[1773202358056,4.48968273,85.579,85.53,2.62282849]
[1773202358257,4.48968273,85.577,85.531,4.41094337]
[1773202358551,4.48968273,85.575,85.531,4.41094337]
[1773202359457,4.48968273,85.574,85.531,4.41094337]
[1773202360356,2.62282849,85.57,85.531,4.41094337]
[1773202360546,4.48968273,85.569,85.527,10.522]
[1773202363459,4.48968273,85.559,85.518,10.523]
[1773202363859,4.48968273,85.559,85.52,14.93394337]
[1773202364057,4.48968273,85.559,85.521,4.41094337]
[1773202365362,4.48968273,85.559,85.523,4.41094337]
[1773202366458,4.48968273,85.559,85.525,4.41094337]
[1773202368364,2.92054281,85.558,85.525,4.41094337]
[1773202368663,4.48968273,85.556,85.524,10.522]
[1773202368865,2.62282849,85.57,85.524,10.522]
[1773202368866,4.48968273,85.554,85.524,10.522]
[1773202369061,2.92054281,85.553,85.524,10.522]
[1773202369265,4.48968273,85.554,85.524,10.522]
[1773202369559,2.92062692,85.553,85.524,10.522]
[1773202369766,2.92062692,85.552,85.524,10.522]
[1773202369966,4.48968273,85.554,85.524,10.522]
[1773202370166,2.92062744,85.553,85.524,10.522]
[1773202370369,4.48968273,85.554,85.517,4.625822]
[1773202370568,4.23814181,85.552,85.517,4.625822]
[1773202372769,2.92062761,85.551,85.517,4.625822]
[1773202372970,4.23814181,85.552,85.517,4.625822]
[1773202373170,2.92062761,85.551,85.517,4.625822]
[1773202373372,4.23814181,85.552,85.517,4.625822]
[1773202373572,2.92062761,85.551,85.517,4.625822]
[1773202373870,4.23814181,85.552,85.517,4.625822]
[1773202374073,4.23814181,85.552,85.521,4.625822]
[1773202375173,2.92054405,85.551,85.521,4.625822]
[1773202375373,4.23814181,85.552,85.521,4.625822]
[1773202375573,2.92054405,85.551,85.521,4.625822]
[1773202375775,4.23814181,85.552,85.521,4.625822]
[1773202376073,2.92054405,85.551,85.521,4.625822]
[1773202376373,4.23814181,85.552,85.521,4.625822]
[1773202376565,2.92054405,85.551,85.521,4.625822]
[1773202376874,4.23814181,85.552,85.521,4.625822]
[1773202377067,2.92054405,85.551,85.521,4.625822]
[1773202377266,4.23814181,85.552,85.521,4.625822]
[1773202377468,2.92054371,85.551,85.521,4.625822]
[1773202377770,2.92054371,85.55,85.521,4.625822]
[1773202377971,4.23814181,85.552,85.521,4.625822]
[1773202378175,2.92054371,85.551,85.521,4.625822]
[1773202378375,2.92054371,85.55,85.521,4.625822]
[1773202378575,2.92054371,85.549,85.521,4.625822]
[1773202378772,4.23814181,85.552,85.521,4.625822]
[1773202378967,2.92054371,85.551,85.521,4.625822]
[1773202379273,2.92054371,85.55,85.521,4.625822]
[1773202379479,4.23814181,85.552,85.521,4.625822]
[1773202379667,2.92054371,85.551,85.521,4.625822]
[1773202379872,2.92054371,85.55,85.521,4.625822]
[1773202380066,4.23814181,85.552,85.521,4.625822]
[1773202380265,2.92054371,85.551,85.521,4.625822]
[1773202380476,2.92054371,85.55,85.521,4.625822]
[1773202380771,4.23814181,85.552,85.521,4.625822]
[1773202380972,2.92054371,85.551,85.521,4.625822]
[1773202381275,4.23814181,85.552,85.521,4.625822]
[1773202381276,2.92054371,85.55,85.521,4.625822]
[1773202381571,2.92054371,85.549,85.521,4.625822]
[1773202381776,4.23814181,85.552,85.521,4.625822]
[1773202381977,4.23814181,85.55,85.521,4.625822]
[1773202382272,4.23814181,85.548,85.509,4.625822]
[1773202382576,4.23814181,85.546,85.509,4.625822]
[1773202382771,4.23814181,85.544,85.509,4.625822]
[1773202382970,4.23814181,85.539,85.499,4.625822]
[1773202383171,4.23814181,85.537,85.499,4.625822]
[1773202383376,2.92058584,85.536,85.499,4.625822]
[1773202383676,2.92058584,85.535,85.499,4.625822]
[1773202383877,2.92058584,85.534,85.499,4.625822]
[1773202384085,2.92058584,85.533,85.499,4.625822]
[1773202384377,2.92058584,85.532,85.502,4.625822]
[1773202384578,2.92058584,85.531,85.502,4.625822]
[1773202384876,2.92058584,85.53,85.502,4.625822]
[1773202385075,4.23814181,85.537,85.502,4.625822]
[1773202385277,2.92133983,85.536,85.502,4.625822]
[1773202385474,2.92133983,85.535,85.502,4.625822]
[1773202385676,2.92133983,85.534,85.502,4.625822]
[1773202385871,2.92133983,85.533,85.502,4.625822]
[1773202386068,2.92133983,85.532,85.502,4.625822]
[1773202386274,2.92133983,85.531,85.502,4.625822]
[1773202386570,4.23814181,85.537,85.502,4.625822]
[1773202386776,2.92133983,85.536,85.502,4.625822]
[1773202387078,2.92133983,85.535,85.502,4.625822]
[1773202387278,2.92133983,85.534,85.502,4.625822]
[1773202387477,2.92133983,85.533,85.502,4.625822]
[1773202387678,2.92133983,85.532,85.502,4.625822]
[1773202387872,2.92133983,85.531,85.502,4.625822]
[1773202388075,4.23814181,85.537,85.502,4.625822]
[1773202388272,4.23814181,85.535,85.502,4.625822]
[1773202388472,4.23814181,85.533,85.502,4.625822]
[1773202388768,7.15948201,85.532,85.502,4.625822]
[1773202388973,2.9213402,85.531,85.502,4.625822]
[1773202389170,4.23814181,85.532,85.502,4.625822]
[1773202389880,4.23814181,85.532,85.501,10.525]
[1773202394783,4.23814181,85.542,85.502,4.625822]
[1773202394979,2.92134125,85.541,85.502,4.625822]
[1773202395282,2.92134125,85.54,85.502,4.625822]
[1773202395580,2.92134125,85.539,85.502,4.625822]
[1773202395781,2.92134125,85.538,85.502,4.625822]
[1773202395981,4.23814181,85.541,85.502,4.625822]
[1773202396178,2.92133923,85.54,85.502,4.625822]
[1773202396378,2.92133923,85.539,85.502,4.625822]
[1773202396579,2.92133923,85.538,85.502,4.625822]
[1773202396779,4.23814181,85.541,85.505,4.625822]
[1773202397081,2.92133853,85.54,85.505,4.625822]
[1773202397280,2.92133853,85.539,85.505,4.625822]
[1773202397579,2.92133853,85.538,85.505,4.625822]
[1773202397779,4.23814181,85.541,85.505,4.625822]
[1773202397981,2.9213369,85.54,85.505,4.625822]
[1773202398181,2.9213369,85.539,85.505,4.625822]
[1773202398377,4.23814181,85.541,85.505,4.625822]
[1773202398687,2.9213369,85.54,85.505,4.625822]
[1773202398983,2.9213369,85.539,85.505,4.625822]
[1773202399185,4.23814181,85.541,85.505,4.625822]
[1773202399386,2.9213378,85.54,85.505,4.625822]
[1773202399587,7.31429924,85.539,85.505,4.625822]
[1773202399886,4.39296144,85.539,85.505,4.625822]
[1773202400082,2.9213378,85.538,85.51,2.62242895]
[1773202400282,2.9213378,85.537,85.51,2.62242895]
[1773202400489,2.9213378,85.536,85.51,2.62242895]
[1773202400687,4.39296144,85.539,85.51,2.62242895]
[1773202400988,4.39296144,85.552,85.52,2.62242895]
[1773202401187,7.31424531,85.551,85.52,2.62242895]
[1773202401382,4.39296144,85.549,85.511,4.19694776]
[1773202401584,2.92128387,85.55,85.511,4.19694776]
[1773202401585,4.39296144,85.547,85.511,4.19694776]
[1773202401887,4.39296144,85.545,85.511,4.19694776]
[1773202402086,7.31424531,85.544,85.511,4.19694776]
[1773202402288,2.92128387,85.543,85.511,4.19694776]
[1773202402488,2.92128387,85.542,85.511,4.19694776]
[1773202402686,2.92128387,85.541,85.511,4.19694776]
[1773202402888,2.92128387,85.54,85.511,4.19694776]
[1773202403091,4.39296144,85.544,85.511,4.19694776]
[1773202403389,2.92128383,85.543,85.511,4.19694776]
[1773202403588,4.39296144,85.544,85.511,4.19694776]
[1773202403589,2.92128383,85.542,85.511,4.19694776]
[1773202403779,2.92128383,85.541,85.511,4.19694776]
[1773202403984,2.92128383,85.54,85.511,4.19694776]
[1773202404288,4.39296144,85.544,85.511,4.19694776]
[1773202404482,2.92128383,85.543,85.511,4.19694776]
[1773202404687,2.92128383,85.542,85.511,4.19694776]
[1773202404987,2.92128383,85.541,85.511,4.19694776]
[1773202405189,2.92128383,85.54,85.511,4.19694776]
[1773202405388,4.39296144,85.544,85.511,4.19694776]
[1773202405587,2.92128383,85.543,85.511,4.19694776]
[1773202405784,4.39296144,85.544,85.511,4.19694776]
[1773202405785,2.92128383,85.542,85.511,4.19694776]
[1773202406089,2.92128383,85.541,85.511,4.19694776]
[1773202406289,2.92128383,85.54,85.511,4.19694776]
[1773202406590,4.39296144,85.587,85.531,3.85347635]
[1773202406786,4.39296144,85.585,85.539,3.85347635]
[1773202406991,4.39296144,85.585,85.55,2.62242895]
[1773202407893,4.39296144,85.602,85.56,2.62242895]
[1773202408084,4.39296144,85.6,85.56,2.62242895]
[1773202408292,4.39296144,85.598,85.56,2.62242895]
[1773202408797,4.39296144,85.596,85.56,2.62242895]
[1773202408993,13.26626547,85.595,85.56,2.62242895]
[1773202409193,4.39296144,85.594,85.56,2.62242895]
[1773202409687,4.39296144,85.594,85.554,10.519]
[1773202409892,4.39296144,85.594,85.551,3.80616794]
[1773202418597,4.23181521,85.592,85.551,3.80616794]
[1773202418800,4.23181521,85.59,85.551,3.80616794]
[1773202419000,4.23181521,85.588,85.551,3.80616794]
[1773202419201,4.23181521,85.586,85.551,3.80616794]
[1773202420196,4.23181521,85.586,85.554,3.80070436]
[1773202420397,4.23181521,85.586,85.512,56.138]
[1773202420398,4.23181521,85.601,85.561,3.80070436]
[1773202420601,2.91966306,85.6,85.561,3.80070436]
[1773202420901,2.91966306,85.599,85.561,3.80070436]
[1773202421105,4.23181521,85.601,85.564,3.79835559]
[1773202421401,4.23181521,85.615,85.571,3.79835559]
[1773202421999,4.23181521,85.606,85.571,3.79835559]
[1773202422502,4.23181521,85.606,85.572,10.516]
[1773202423100,4.23181521,85.606,85.578,10.516]
[1773202423304,4.23181521,85.606,85.573,3.80063884]
[1773202425098,4.23181521,85.602,85.573,3.80063884]
[1773202430405,4.23181521,85.602,85.57,13.13942895]
[1773202430705,4.23181521,85.602,85.57,2.62242895]
[1773202430897,4.23181521,85.602,85.563,3.74450736]
[1773202432508,4.23181521,85.602,85.57,2.62242895]
[1773202437614,4.23181521,85.602,85.571,10.517]
[1773202440214,4.16277163,85.615,85.581,3.7724821]
[1773202441315,4.16277163,85.615,85.584,10.515]
[1773202442122,4.16277163,85.615,85.584,14.26487478]
[1773202443522,4.16277163,85.637,85.591,3.74816533]
[1773202443724,4.16277163,85.635,85.591,3.74816533]
[1773202444225,4.16277163,85.635,85.593,3.74606871]
[1773202444421,4.16277163,85.635,85.601,3.74606871]
[1773202444729,4.16277163,85.649,85.601,3.74606871]
[1773202444922,4.16277163,85.647,85.601,3.74606871]
[1773202445124,4.16277163,85.645,85.601,3.74606871]
[1773202445428,4.16277163,85.645,85.602,3.74437445]
[1773202446032,4.16277163,85.645,85.606,3.73184577]
[1773202447220,21.001,85.703,85.611,3.7301958]
[1773202447221,4.16277163,85.661,85.611,3.7301958]
[1773202447429,4.16277163,85.659,85.611,3.7301958]
[1773202447622,4.16277163,85.657,85.611,3.7301958]
[1773202447824,4.16277163,85.655,85.611,3.7301958]
[1773202448022,4.16277163,85.653,85.611,3.7301958]
[1773202448426,4.16277163,85.653,85.614,3.63946799]
[1773202449531,4.16277163,85.649,85.614,3.63946799]
[1773202449829,4.16277163,85.649,85.606,3.6349063]
[1773202451228,2.91795928,85.648,85.606,3.6349063]